[Event "EYCC Girls-U14 2019"]
[Site "Bratislava"]
[Date "2019.08.03"]
[Round "2.9"]
[White "Lhotska, Anna"]
[Black "Lorente Serrano, Rosa Adela"]
[Result "1-0"]
[ECO "B90"]
[WhiteElo "1922"]
[BlackElo "1788"]
[Annotator "NA"]
[PlyCount "117"]
[EventDate "2019.08.02"]
[EventType "swiss"]
[EventCountry "SVK"]
[SourceTitle "playchess.com"]
[Source "ChessBase"]
[SourceQuality "1"]
[TimeControl "40/5400+30:1800+30"]

1. e4 {[%emt 0:00:00]} c5 {[%emt 0:00:00]} 2. Nf3 {[%emt 0:00:00]} d6 {[%emt 0:00:24]} 3. d4 {[%emt 0:00:00]} cxd4 {[%emt 0:01:01]} 4. Nxd4 {[%emt 0:00:00]} Nf6 {[%emt 0:00:33]} 5. Nc3 {[%emt 0:00:04]} a6 {[%emt 0:00:17]} 6. Be3 {[%emt 0:03:23]} e5 {[%emt 0:02:33]} 7. Nb3 {[%emt 0:00:23]} Be6 {[%emt 0:00:14]} 8. f3 {[%emt 0:00:55]} Be7 {[%emt 0:04:17]} 9. Qd2 {[%emt 0:01:04]} Nbd7 {[%emt 0:10:16]} 10. O-O-O {[%emt 0:01:38]} b5 {[%emt 0:05:37]} 11. g4 {[%emt 0:04:36]} Nb6 {[%emt 0:06:14]} 12. Na5 {[%emt 0:05:04]} Qc7 {[%emt 0:02:37]} 13. g5 {[%emt 0:02:43]} Nh5 {[%emt 0:04:09]} 14. Nd5 {[%emt 0:02:57]} Nxd5 {[%emt 0:02:35]} 15. exd5 {[%emt 0:00:10]} Bd7 {[%emt 0:00:07]} 16. Nb3 {[%emt 0:10:59]} O-O {[%emt 0:09:44]} 17. Be2 {[%emt 0:02:47]} a5 {[%emt 0:01:07]} 18. Kb1 {[%emt 0:03:46]} a4 {[%emt 0:02:45]} 19. Nc1 {[%emt 0:00:36]} b4 {[%emt 0:07:25]} 20. Qxb4 {[%emt 0:17:50]} Rfb8 {[%emt 0:01:02]} 21. Qc4 {[%emt 0:03:50]} Qb7 {[%emt 0:00:32]} 22. b3 {[%emt 0:01:59]} axb3 {[%emt 0:01:23]} 23. cxb3 {[%emt 0:00:29]} g6 {[%emt 0:06:04]} 24. Qc3 {[%emt 0:04:39]} Rc8 {[%emt 0:01:15]} 25. Qb2 {[%emt 0:00:53]} Ng7 {[%emt 0:00:45]} 26. h4 {[%emt 0:01:04]} Bf8 {[%emt 0:01:49]} 27. Bf2 {[%emt 0:01:51]} Nh5 {[%emt 0:00:22]} 28. Bd3 {[%emt 0:03:20]} Bg7 {[%emt 0:00:50]} 29. Qd2 {[%emt 0:01:17]} Nf4 {[%emt 0:03:58]} 30. Be4 {[%emt 0:01:06]} Qa6 {[%emt 0:00:07]} 31. Be3 {[%emt 0:02:27]} Bb5 {[%emt 0:03:44]} 32. Rh2 {[%emt 0:03:01]} Qa3 {[%emt 0:01:43]} 33. Qb2 {[%emt 0:06:29]} Qb4 {[%emt 0:04:22]} 34. Rc2 {[%emt 0:01:38]} Rcb8 {[%emt 0:00:43]} 35. Bd2 {[%emt 0:00:59]} Qa3 {[%emt 0:00:45]} 36. Qxa3 {[%emt 0:00:07]} Rxa3 {[%emt 0:00:02]} 37. Bb4 {[%emt 0:01:09]} Ra6 {[%emt 0:00:12]} 38. a3 {[%emt 0:00:32]} h6 {[%emt 0:01:18]} 39. Nd3 {[%emt 0:03:45]} hxg5 {[%emt 0:00:35]} 40. hxg5 {[%emt 0:00:00]} Nh3 {[%emt 0:00:00]} 41. Rg2 {[%emt 0:03:43]} Rab6 {[%emt 0:04:55]} 42. Nb2 {[%emt 0:03:50]} Bf8 {[%emt 0:01:05]} 43. Rh1 {[%emt 0:01:50]} Nf4 {[%emt 0:00:21]} 44. Rgh2 {[%emt 0:00:39]} Bg7 {[%emt 0:00:19]} 45. Nc4 {[%emt 0:07:02]} Bxc4 {[%emt 0:00:10]} 46. bxc4 {[%emt 0:00:06]} Nh5 {[%emt 0:01:57]} 47. Ka2 {[%emt 0:01:03]} Ng3 {[%emt 0:00:24]} 48. Rc1 {[%emt 0:00:42]} Nf5 {[%emt 0:00:39]} 49. Rb2 {[%emt 0:05:26]} Nd4 {[%emt 0:01:19]} 50. Rcb1 {[%emt 0:00:43]} Ra8 {[%emt 0:00:32]} 51. Be1 {[%emt 0:02:46]} Rba6 {[%emt 0:00:06]} 52. Rb8+ {[%emt 0:00:14]} Rxb8 {[%emt 0:00:43]} 53. Rxb8+ {[%emt 0:00:08]} Bf8 {[%emt 0:00:04]} 54. Bb4 {[%emt 0:00:36]} Kg7 {[%emt 0:00:05]} 55. Rb7 {[%emt 0:00:53]} Nf5 {[%emt 0:01:07]} 56. Rc7 {[%emt 0:00:44]} Kg8 {[%emt 0:02:15]} 57. Rc6 {[%emt 0:04:06]} Ra7 {[%emt 0:00:10]} 58. Bxf5 {[%emt 0:00:54]} gxf5 {[%emt 0:00:09]} 59. Bxd6 {[%emt 0:00:07]} 1-0

[Event "EYCC Girls-U14 2019"]
[Site "Bratislava"]
[Date "2019.08.03"]
[Round "2.10"]
[White "Sosovickova, Jana"]
[Black "Toth, Nikoletta"]
[Result "1/2-1/2"]
[ECO "B34"]
[WhiteElo "1749"]
[BlackElo "2023"]
[Annotator "NA"]
[PlyCount "65"]
[EventDate "2019.08.02"]
[EventType "swiss"]
[EventCountry "SVK"]
[SourceTitle "playchess.com"]
[Source "ChessBase"]
[SourceQuality "1"]
[TimeControl "40/5400+30:1800+30"]

1. e4 {[%emt 0:00:00]} c5 {[%emt 0:00:00]} 2. Nf3 {[%emt 0:00:08]} Nc6 {[%emt 0:00:00]} 3. d4 {[%emt 0:01:30]} cxd4 {[%emt 0:00:00]} 4. Nxd4 {[%emt 0:00:06]} Nf6 {[%emt 0:00:07]} 5. Nc3 {[%emt 0:00:43]} e5 {[%emt 0:00:11]} 6. Nde2 {[%emt 0:06:18]} Bc5 {[%emt 0:07:24]} 7. Ng3 {[%emt 0:03:43]} Qb6 {[%emt 0:07:18]} 8. Qd2 {[%emt 0:09:33]} Nd4 {[%emt 0:16:01]} 9. Na4 {[%emt 0:12:37]} Qc6 {[%emt 0:07:06]} 10. Nxc5 {[%emt 0:01:19]} Qxc5 {[%emt 0:00:01]} 11. Bd3 {[%emt 0:02:43]} O-O {[%emt 0:00:35]} 12. O-O {[%emt 0:01:11]} d5 {[%emt 0:00:21]} 13. c3 {[%emt 0:03:11]} Ne6 {[%emt 0:04:44]} 14. exd5 {[%emt 0:01:57]} Qxd5 {[%emt 0:00:34]} 15. Qc2 {[%emt 0:03:03]} Nc5 {[%emt 0:12:29]} 16. Bf5 {[%emt 0:06:18]} e4 {[%emt 0:01:58]} 17. Rd1 {[%emt 0:05:33]} Qe5 {[%emt 0:02:13]} 18. Bxc8 {[%emt 0:01:36]} Raxc8 {[%emt 0:00:02]} 19. Be3 {[%emt 0:01:14]} Rfe8 {[%emt 0:07:08]} 20. Bd4 {[%emt 0:04:04]} Qf4 {[%emt 0:04:20]} 21. Be3 {[%emt 0:05:16]} Qg4 {[%emt 0:01:52]} 22. Bxc5 {[%emt 0:02:30]} Rxc5 {[%emt 0:00:28]} 23. Rd4 {[%emt 0:01:01]} Qe6 {[%emt 0:01:24]} 24. a3 {[%emt 0:05:31]} h6 {[%emt 0:08:17]} 25. Re1 {[%emt 0:02:08]} Re5 {[%emt 0:00:14]} 26. Qd2 {[%emt 0:02:56]} Kh8 {[%emt 0:11:55]} 27. h3 {[%emt 0:03:03]} b6 {[%emt 0:03:11]} 28. Qc2 {[%emt 0:04:12]} e3 {[%emt 0:00:47]} 29. Rxe3 {[%emt 0:01:50]} Rxe3 {[%emt 0:00:12]} 30. fxe3 {[%emt 0:00:06]} Qxe3+ {[%emt 0:00:04]} 31. Qf2 {[%emt 0:01:51]} Qxf2+ {[%emt 0:01:41]} 32. Kxf2 {[%emt 0:00:05]} Re5 {[%emt 0:00:18]} 33. c4 {[%emt 0:03:32]} 1/2-1/2

[Event "EYCC Girls-U14 2019"]
[Site "Bratislava"]
[Date "2019.08.03"]
[Round "2.11"]
[White "Pipiras, Filipa Fortuna"]
[Black "Qasem, Huda"]
[Result "1-0"]
[ECO "E48"]
[WhiteElo "1980"]
[BlackElo "1798"]
[Annotator "NA"]
[PlyCount "134"]
[EventDate "2019.08.02"]
[EventType "swiss"]
[EventCountry "SVK"]
[SourceTitle "playchess.com"]
[Source "ChessBase"]
[SourceQuality "1"]
[TimeControl "40/5400+30:1800+30"]

1. d4 {[%emt 0:00:02]} Nf6 {[%emt 0:00:00]} 2. c4 {[%emt 0:00:49]} e6 {[%emt 0:00:15]} 3. Nc3 {[%emt 0:01:10]} Bb4 {[%emt 0:01:07]} 4. e3 {[%emt 0:01:06]} O-O {[%emt 0:02:19]} 5. Bd3 {[%emt 0:01:06]} d5 {[%emt 0:01:33]} 6. Nf3 {[%emt 0:01:53]} Bxc3+ {[%emt 0:02:58]} 7. bxc3 {[%emt 0:00:23]} dxc4 {[%emt 0:00:23]} 8. Bxc4 {[%emt 0:00:12]} c5 {[%emt 0:00:51]} 9. O-O {[%emt 0:02:31]} Qc7 {[%emt 0:04:15]} 10. Qe2 {[%emt 0:11:14]} Nbd7 {[%emt 0:03:42]} 11. e4 {[%emt 0:07:16]} cxd4 {[%emt 0:03:36]} 12. e5 {[%emt 0:02:24]} d3 {[%emt 0:05:23]} 13. Bxd3 {[%emt 0:01:13]} Ng4 {[%emt 0:18:35]} 14. Bf4 {[%emt 0:29:41]} f6 {[%emt 0:10:44]} 15. Nd4 {[%emt 0:03:31]} Ndxe5 {[%emt 0:05:47]} 16. Qxg4 {[%emt 0:01:50]} Qxc3 {[%emt 0:02:35]} 17. Bxe5 {[%emt 0:01:39]} Qxd3 {[%emt 0:04:06]} 18. Bd6 {[%emt 0:06:36]} Re8 {[%emt 0:12:48]} 19. Rfd1 {[%emt 0:01:49]} Qc4 {[%emt 0:04:04]} 20. Qg3 {[%emt 0:03:00]} e5 {[%emt 0:02:27]} 21. Qb3 {[%emt 0:01:18]} Qxb3 {[%emt 0:00:39]} 22. Nxb3 {[%emt 0:00:09]} b6 {[%emt 0:01:01]} 23. Rac1 {[%emt 0:01:12]} Be6 {[%emt 0:01:20]} 24. h3 {[%emt 0:00:34]} Rac8 {[%emt 0:02:22]} 25. Rc7 {[%emt 0:01:42]} Red8 {[%emt 0:03:03]} 26. Rxc8 {[%emt 0:01:10]} Rxc8 {[%emt 0:00:14]} 27. Rc1 {[%emt 0:00:16]} Rxc1+ {[%emt 0:01:45]} 28. Nxc1 {[%emt 0:01:26]} Kf7 {[%emt 0:01:04]} 29. a3 {[%emt 0:01:59]} Bc4 {[%emt 0:01:01]} 30. f4 {[%emt 0:01:22]} exf4 {[%emt 0:00:24]} 31. Bxf4 {[%emt 0:00:07]} Ke6 {[%emt 0:00:47]} 32. Kf2 {[%emt 0:00:24]} Kd5 {[%emt 0:00:47]} 33. Ke3 {[%emt 0:03:06]} Kc6 {[%emt 0:01:10]} 34. Nd3 {[%emt 0:01:05]} a5 {[%emt 0:00:34]} 35. Kd4 {[%emt 0:00:35]} Bd5 {[%emt 0:01:04]} 36. g3 {[%emt 0:00:17]} Be6 {[%emt 0:01:37]} 37. h4 {[%emt 0:00:39]} h6 {[%emt 0:00:23]} 38. Bd2 {[%emt 0:00:53]} g5 {[%emt 0:00:19]} 39. hxg5 {[%emt 0:02:07]} hxg5 {[%emt 0:00:06]} 40. Nf2 {[%emt 0:00:00]} Kd7 {[%emt 0:00:00]} 41. Ne4 {[%emt 0:04:30]} Ke7 {[%emt 0:02:36]} 42. Bc3 {[%emt 0:02:16]} g4 {[%emt 0:04:42]} 43. Nd2 {[%emt 0:03:06]} Kd6 {[%emt 0:02:56]} 44. Ne4+ {[%emt 0:07:23]} Ke7 {[%emt 0:00:07]} 45. Bd2 {[%emt 0:01:05]} Bd7 {[%emt 0:07:44]} 46. Kd5 {[%emt 0:00:49]} Ba4 {[%emt 0:10:08]} 47. Be3 {[%emt 0:05:52]} b5 {[%emt 0:02:01]} 48. Nc5 {[%emt 0:04:20]} Bc2 {[%emt 0:01:37]} 49. Bd2 {[%emt 0:03:47]} b4 {[%emt 0:00:16]} 50. a4 {[%emt 0:00:22]} Kf7 {[%emt 0:02:49]} 51. Kc4 {[%emt 0:01:09]} f5 {[%emt 0:00:58]} 52. Bf4 {[%emt 0:01:47]} Kf6 {[%emt 0:00:33]} 53. Nb3 {[%emt 0:01:59]} Kg6 {[%emt 0:00:46]} 54. Bc7 {[%emt 0:01:33]} Kg5 {[%emt 0:00:20]} 55. Bd8+ {[%emt 0:00:08]} Kh5 {[%emt 0:00:49]} 56. Bxa5 {[%emt 0:00:58]} f4 {[%emt 0:00:32]} 57. gxf4 {[%emt 0:00:18]} g3 {[%emt 0:00:02]} 58. Bxb4 {[%emt 0:00:25]} Kg4 {[%emt 0:00:48]} 59. a5 {[%emt 0:01:39]} Kxf4 {[%emt 0:00:12]} 60. a6 {[%emt 0:00:39]} Be4 {[%emt 0:00:43]} 61. a7 {[%emt 0:00:41]} g2 {[%emt 0:00:32]} 62. Bc5 {[%emt 0:00:08]} Ba8 {[%emt 0:00:53]} 63. Kb5 {[%emt 0:00:25]} Kf3 {[%emt 0:01:26]} 64. Kb6 {[%emt 0:00:19]} Ke2 {[%emt 0:00:12]} 65. Kc7 {[%emt 0:00:12]} Kf1 {[%emt 0:00:28]} 66. Kb8 {[%emt 0:00:08]} Bd5 {[%emt 0:00:33]} 67. Na5 {[%emt 0:00:08]} g1=Q {[%emt 0:01:05]} 1-0

[Event "EYCC Girls-U14 2019"]
[Site "Bratislava"]
[Date "2019.08.03"]
[Round "2.12"]
[White "Ruseva, Eva"]
[Black "Kirchei, Viktoriia"]
[Result "0-1"]
[ECO "E48"]
[WhiteElo "1804"]
[BlackElo "2006"]
[Annotator "NA"]
[PlyCount "84"]
[EventDate "2019.08.02"]
[EventType "swiss"]
[EventCountry "SVK"]
[SourceTitle "playchess.com"]
[Source "ChessBase"]
[SourceQuality "1"]
[TimeControl "40/5400+30:1800+30"]

1. d4 {[%emt 0:00:00]} Nf6 {[%emt 0:00:00]} 2. c4 {[%emt 0:00:00]} e6 {[%emt 0:00:00]} 3. Nc3 {[%emt 0:00:00]} Bb4 {[%emt 0:00:00]} 4. e3 {[%emt 0:00:00]} O-O {[%emt 0:00:09]} 5. Bd3 {[%emt 0:00:00]} d5 {[%emt 0:00:07]} 6. Nge2 {[%emt 0:00:21]} b6 {[%emt 0:03:09]} 7. O-O {[%emt 0:03:47]} Bb7 {[%emt 0:00:53]} 8. cxd5 {[%emt 0:02:11]} exd5 {[%emt 0:00:28]} 9. Bd2 {[%emt 0:07:15]} Bd6 {[%emt 0:02:01]} 10. h3 {[%emt 0:01:32]} Re8 {[%emt 0:06:25]} 11. a4 {[%emt 0:05:58]} a5 {[%emt 0:04:47]} 12. Rc1 {[%emt 0:06:13]} Na6 {[%emt 0:01:58]} 13. Nb5 {[%emt 0:09:21]} Bf8 {[%emt 0:01:16]} 14. Nf4 {[%emt 0:02:32]} c6 {[%emt 0:01:24]} 15. Na3 {[%emt 0:03:33]} Nb4 {[%emt 0:04:18]} 16. Bxb4 {[%emt 0:01:42]} axb4 {[%emt 0:00:59]} 17. Nb1 {[%emt 0:00:08]} Bd6 {[%emt 0:05:18]} 18. Ne2 {[%emt 0:04:22]} Ne4 {[%emt 0:04:18]} 19. b3 {[%emt 0:08:51]} Ng5 {[%emt 0:03:42]} 20. Kh1 {[%emt 0:03:53]} Re6 {[%emt 0:15:09]} 21. Ng1 {[%emt 0:02:42]} c5 {[%emt 0:09:05]} 22. Nf3 {[%emt 0:05:20]} c4 {[%emt 0:03:06]} 23. bxc4 {[%emt 0:08:53]} dxc4 {[%emt 0:00:06]} 24. Bxc4 {[%emt 0:00:14]} Bxf3 {[%emt 0:01:59]} 25. gxf3 {[%emt 0:00:23]} Nxh3 {[%emt 0:04:05]} 26. Bxe6 {[%emt 0:02:46]} Qh4 {[%emt 0:07:20]} 27. Kg2 {[%emt 0:01:43]} fxe6 {[%emt 0:00:18]} 28. f4 {[%emt 0:03:00]} Rf8 {[%emt 0:05:12]} 29. Qf3 {[%emt 0:03:38]} Nxf4+ {[%emt 0:00:25]} 30. exf4 {[%emt 0:00:18]} Rxf4 {[%emt 0:00:03]} 31. Qa8+ {[%emt 0:00:08]} Rf8 {[%emt 0:04:59]} 32. Qxf8+ {[%emt 0:00:06]} Kxf8 {[%emt 0:00:05]} 33. Rfd1 {[%emt 0:02:36]} Qe4+ {[%emt 0:00:30]} 34. Kf1 {[%emt 0:00:21]} h5 {[%emt 0:03:00]} 35. Nd2 {[%emt 0:00:44]} Qg4 {[%emt 0:03:14]} 36. Nc4 {[%emt 0:00:18]} Bf4 {[%emt 0:00:18]} 37. Rb1 {[%emt 0:01:12]} h4 {[%emt 0:02:09]} 38. Ne5 {[%emt 0:01:02]} Qh5 {[%emt 0:01:00]} 39. Nd3 {[%emt 0:01:07]} Bd6 {[%emt 0:00:40]} 40. Ne5 {[%emt 0:00:00]} h3 {[%emt 0:00:00]} 41. Kg1 {[%emt 0:01:35]} Qg5+ {[%emt 0:05:29]} 42. Kf1 {[%emt 0:00:05]} Qg2+ {[%emt 0:00:36]} 0-1

[Event "EYCC Girls-U14 2019"]
[Site "Bratislava"]
[Date "2019.08.03"]
[Round "2.13"]
[White "Zhou, Lulu"]
[Black "Zabrzanska, Weronika"]
[Result "1-0"]
[ECO "C60"]
[WhiteElo "1944"]
[BlackElo "1748"]
[Annotator "NA"]
[PlyCount "65"]
[EventDate "2019.08.02"]
[EventType "swiss"]
[EventCountry "SVK"]
[SourceTitle "playchess.com"]
[Source "ChessBase"]
[SourceQuality "1"]
[TimeControl "40/5400+30:1800+30"]

1. e4 {[%emt 0:00:00]} e5 {[%emt 0:00:00]} 2. Nf3 {[%emt 0:00:00]} Nc6 {[%emt 0:00:00]} 3. Bb5 {[%emt 0:00:00]} Nge7 {[%emt 0:00:00]} 4. O-O {[%emt 0:01:37]} g6 {[%emt 0:00:00]} 5. d4 {[%emt 0:01:08]} exd4 {[%emt 0:06:34]} 6. Nxd4 {[%emt 0:00:08]} Bg7 {[%emt 0:00:16]} 7. Be3 {[%emt 0:02:56]} O-O {[%emt 0:03:19]} 8. Nc3 {[%emt 0:03:37]} a6 {[%emt 0:03:51]} 9. Be2 {[%emt 0:03:57]} b5 {[%emt 0:05:41]} 10. a3 {[%emt 0:03:53]} Bb7 {[%emt 0:03:22]} 11. f4 {[%emt 0:02:10]} d5 {[%emt 0:12:54]} 12. Nxc6 {[%emt 0:22:43]} Bxc6 {[%emt 0:00:31]} 13. e5 {[%emt 0:11:45]} Re8 {[%emt 0:03:25]} 14. g4 {[%emt 0:02:08]} Qd7 {[%emt 0:18:43]} 15. Bf3 {[%emt 0:02:30]} Rad8 {[%emt 0:04:11]} 16. Ne2 {[%emt 0:00:56]} Bb7 {[%emt 0:00:43]} 17. c3 {[%emt 0:00:38]} Nc6 {[%emt 0:06:56]} 18. Bf2 {[%emt 0:03:46]} f6 {[%emt 0:02:33]} 19. Bh4 {[%emt 0:05:05]} g5 {[%emt 0:07:18]} 20. exf6 {[%emt 0:00:33]} gxh4 {[%emt 0:00:42]} 21. fxg7 {[%emt 0:00:09]} Qxg7 {[%emt 0:02:07]} 22. Kh1 {[%emt 0:07:17]} d4 {[%emt 0:03:24]} 23. cxd4 {[%emt 0:04:11]} Nxd4 {[%emt 0:04:10]} 24. Nxd4 {[%emt 0:01:02]} Bxf3+ {[%emt 0:00:29]} 25. Qxf3 {[%emt 0:01:52]} Qxd4 {[%emt 0:00:32]} 26. Rad1 Qxb2 {[%emt 0:01:42]} 27. f5 {[%emt 0:08:29]} Qf6 {[%emt 0:00:29]} 28. Rxd8 {[%emt 0:00:42]} Rxd8 {[%emt 0:00:47]} 29. Re1 {[%emt 0:01:12]} Qd4 {[%emt 0:02:04]} 30. f6 {[%emt 0:01:47]} Rf8 {[%emt 0:04:44]} 31. g5 {[%emt 0:00:17]} c5 {[%emt 0:01:03]} 32. Qb7 {[%emt 0:00:20]} h3 {[%emt 0:01:34]} 33. Qg7# 1-0

[Event "EYCC Girls-U14 2019"]
[Site "Bratislava"]
[Date "2019.08.03"]
[Round "2.14"]
[White "Otetea, Ioana"]
[Black "Wikar, Martyna"]
[Result "0-1"]
[ECO "B24"]
[WhiteElo "1744"]
[BlackElo "2020"]
[Annotator "NA"]
[PlyCount "74"]
[EventDate "2019.08.02"]
[EventType "swiss"]
[EventCountry "SVK"]
[SourceTitle "playchess.com"]
[Source "ChessBase"]
[SourceQuality "1"]
[TimeControl "40/5400+30:1800+30"]

1. e4 {[%emt 0:00:00]} c5 {[%emt 0:00:00]} 2. Nc3 {[%emt 0:00:00]} Nc6 {[%emt 0:00:07]} 3. Bb5 {[%emt 0:00:00]} e6 {[%emt 0:01:19]} 4. Nge2 {[%emt 0:06:50]} Nge7 {[%emt 0:01:13]} 5. d4 {[%emt 0:04:51]} cxd4 {[%emt 0:01:55]} 6. Nxd4 {[%emt 0:00:10]} a6 {[%emt 0:07:39]} 7. Bxc6 {[%emt 0:06:30]} Nxc6 {[%emt 0:02:58]} 8. O-O {[%emt 0:02:03]} Qc7 {[%emt 0:01:00]} 9. a4 {[%emt 0:02:27]} Be7 {[%emt 0:03:13]} 10. Kh1 {[%emt 0:06:11]} O-O {[%emt 0:08:13]} 11. f4 {[%emt 0:03:43]} Nxd4 {[%emt 0:03:48]} 12. Qxd4 {[%emt 0:00:07]} f5 {[%emt 0:04:31]} 13. e5 {[%emt 0:02:44]} d6 {[%emt 0:06:54]} 14. Be3 {[%emt 0:04:21]} dxe5 {[%emt 0:02:36]} 15. fxe5 {[%emt 0:01:00]} Rd8 {[%emt 0:05:04]} 16. Qf4 {[%emt 0:00:09]} b6 {[%emt 0:02:03]} 17. Rfe1 {[%emt 0:11:45]} Bb7 {[%emt 0:04:12]} 18. Qf2 {[%emt 0:00:37]} Qc6 {[%emt 0:00:50]} 19. Re2 {[%emt 0:05:04]} Bc5 {[%emt 0:04:29]} 20. Bxc5 {[%emt 0:00:43]} bxc5 {[%emt 0:01:41]} 21. Rd2 {[%emt 0:06:29]} Rd4 {[%emt 0:05:23]} 22. h3 {[%emt 0:07:13]} Rad8 {[%emt 0:01:36]} 23. Rad1 {[%emt 0:01:31]} Kf7 {[%emt 0:05:28]} 24. Rd3 {[%emt 0:01:40]} h6 {[%emt 0:05:03]} 25. Ne2 {[%emt 0:06:45]} Rxd3 {[%emt 0:01:40]} 26. Rxd3 {[%emt 0:00:09]} Rd5 {[%emt 0:05:26]} 27. Qg3 {[%emt 0:06:32]} Rxd3 {[%emt 0:01:50]} 28. cxd3 {[%emt 0:00:06]} Qxa4 {[%emt 0:00:11]} 29. Nf4 {[%emt 0:03:13]} Qd1+ {[%emt 0:00:58]} 30. Kh2 {[%emt 0:00:07]} g5 {[%emt 0:00:24]} 31. Qf2 {[%emt 0:03:36]} gxf4 {[%emt 0:00:49]} 32. Qxc5 {[%emt 0:00:18]} Bxg2 {[%emt 0:03:09]} 33. Kxg2 {[%emt 0:01:57]} Qe2+ {[%emt 0:00:41]} 34. Qf2 {[%emt 0:01:10]} Qxe5 {[%emt 0:00:57]} 35. Kf3 {[%emt 0:01:29]} Qe3+ {[%emt 0:00:40]} 36. Qxe3 {[%emt 0:00:04]} fxe3 {[%emt 0:00:04]} 37. Kxe3 {[%emt 0:00:06]} e5 {[%emt 0:00:25] Kd4} 0-1

[Event "EYCC Girls-U14 2019"]
[Site "Bratislava"]
[Date "2019.08.03"]
[Round "2.15"]
[White "Batagan, Ilinca-Petra"]
[Black "Sumarriva Paulin, Laura"]
[Result "1/2-1/2"]
[ECO "C01"]
[WhiteElo "1767"]
[BlackElo "1861"]
[Annotator "NA"]
[PlyCount "55"]
[EventDate "2019.08.02"]
[EventType "swiss"]
[EventCountry "SVK"]
[SourceTitle "playchess.com"]
[Source "ChessBase"]
[SourceQuality "1"]
[TimeControl "40/5400+30:1800+30"]

1. e4 {[%emt 0:00:00]} e6 {[%emt 0:00:00]} 2. d4 {[%emt 0:00:00]} d5 {[%emt 0:00:00]} 3. exd5 {[%emt 0:00:02]} exd5 {[%emt 0:00:00]} 4. c4 {[%emt 0:00:11]} c6 {[%emt 0:04:54]} 5. Nf3 {[%emt 0:01:15]} Nf6 {[%emt 0:00:28]} 6. Nc3 {[%emt 0:00:47]} Be7 {[%emt 0:01:56]} 7. Be2 {[%emt 0:01:23]} O-O {[%emt 0:00:21]} 8. O-O {[%emt 0:00:55]} dxc4 {[%emt 0:01:47]} 9. Bxc4 {[%emt 0:00:25]} Nbd7 {[%emt 0:00:28]} 10. Re1 {[%emt 0:05:25]} Nb6 {[%emt 0:01:00]} 11. Bb3 {[%emt 0:01:08]} Bg4 {[%emt 0:01:56]} 12. Be3 {[%emt 0:02:04]} Nbd5 {[%emt 0:08:52]} 13. h3 {[%emt 0:01:36]} Bh5 {[%emt 0:01:13]} 14. Bg5 {[%emt 0:02:06]} Nxc3 {[%emt 0:22:18]} 15. bxc3 {[%emt 0:00:16]} Nd5 {[%emt 0:00:34]} 16. Bxe7 {[%emt 0:01:57]} Nxe7 {[%emt 0:00:10]} 17. Re5 {[%emt 0:04:22]} Bg6 {[%emt 0:03:36]} 18. Nh4 {[%emt 0:01:14]} Nc8 {[%emt 0:11:08]} 19. Nxg6 {[%emt 0:01:31]} hxg6 {[%emt 0:00:08]} 20. Qd3 {[%emt 0:06:47]} Qf6 {[%emt 0:04:35]} 21. Rae1 {[%emt 0:01:28]} Nd6 {[%emt 0:02:51]} 22. c4 {[%emt 0:09:50]} Rad8 {[%emt 0:05:20]} 23. d5 {[%emt 0:01:19]} cxd5 {[%emt 0:00:43]} 24. cxd5 {[%emt 0:00:25]} a6 {[%emt 0:05:03]} 25. Re7 {[%emt 0:07:52]} Rfe8 {[%emt 0:05:57]} 26. Rxe8+ {[%emt 0:01:57]} Rxe8 {[%emt 0:00:07]} 27. Rxe8+ {[%emt 0:00:16]} Nxe8 {[%emt 0:00:05]} 28. Qc2 {[%emt 0:04:48]} 1/2-1/2

[Event "EYCC Girls-U14 2019"]
[Site "Bratislava"]
[Date "2019.08.03"]
[Round "2.16"]
[White "Hakobyan, Astghik"]
[Black "Barwinska, Ewa"]
[Result "1/2-1/2"]
[ECO "B90"]
[WhiteElo "1863"]
[BlackElo "1758"]
[Annotator "NA"]
[PlyCount "90"]
[EventDate "2019.08.02"]
[EventType "swiss"]
[EventCountry "SVK"]
[SourceTitle "playchess.com"]
[Source "ChessBase"]
[SourceQuality "1"]
[TimeControl "40/5400+30:1800+30"]

1. e4 {[%emt 0:00:00]} c5 {[%emt 0:00:00]} 2. Nf3 {[%emt 0:00:00]} d6 {[%emt 0:00:00]} 3. d4 {[%emt 0:00:07]} cxd4 {[%emt 0:00:01]} 4. Nxd4 {[%emt 0:00:05]} Nf6 {[%emt 0:00:43]} 5. Nc3 {[%emt 0:00:08]} a6 {[%emt 0:00:08]} 6. Be3 {[%emt 0:00:43]} e5 {[%emt 0:00:12]} 7. Nb3 {[%emt 0:00:18]} Be6 {[%emt 0:00:31]} 8. f3 {[%emt 0:00:19]} Be7 {[%emt 0:00:33]} 9. Qd2 {[%emt 0:00:07]} Nbd7 {[%emt 0:00:13]} 10. O-O-O {[%emt 0:00:23]} O-O {[%emt 0:00:12]} 11. g4 {[%emt 0:00:32]} b5 {[%emt 0:00:11]} 12. g5 {[%emt 0:01:12]} b4 {[%emt 0:00:37]} 13. Na4 {[%emt 0:06:17]} Ne8 {[%emt 0:02:48]} 14. h4 {[%emt 0:01:33]} a5 {[%emt 0:02:55]} 15. h5 Qc7 {[%emt 0:03:14]} 16. Bb5 {[%emt 0:13:50]} Nc5 {[%emt 0:04:49]} 17. Kb1 {[%emt 0:04:53]} Rb8 {[%emt 0:04:40]} 18. Nbxc5 {[%emt 0:14:06]} dxc5 {[%emt 0:01:44]} 19. Bxe8 {[%emt 0:03:37]} Rfxe8 {[%emt 0:00:32]} 20. Qf2 {[%emt 0:02:17]} Rec8 {[%emt 0:04:09]} 21. g6 {[%emt 0:04:25]} Qc6 {[%emt 0:04:43]} 22. b3 {[%emt 0:02:18]} Qb5 {[%emt 0:08:31]} 23. h6 {[%emt 0:02:53]} fxg6 {[%emt 0:04:35]} 24. hxg7 {[%emt 0:01:14]} c4 {[%emt 0:04:47]} 25. f4 {[%emt 0:06:57]} cxb3 {[%emt 0:05:56]} 26. axb3 {[%emt 0:05:59]} exf4 {[%emt 0:07:54]} 27. Qxf4 {[%emt 0:01:47]} h5 {[%emt 0:20:44]} 28. Qh6 {[%emt 0:02:32]} Bf6 {[%emt 0:03:55]} 29. Qxg6 {[%emt 0:08:31]} Qc6 {[%emt 0:06:28]} 30. Rd2 {[%emt 0:16:52]} Bf7 {[%emt 0:02:16]} 31. Qf5 {[%emt 0:00:46]} Bc3 {[%emt 0:05:38]} 32. Rf2 {[%emt 0:00:39]} Qg6 {[%emt 0:01:22]} 33. Bf4 {[%emt 0:00:34]} Qxf5 {[%emt 0:00:25]} 34. exf5 {[%emt 0:00:04]} Rb5 {[%emt 0:00:27]} 35. Bh6 {[%emt 0:00:47]} Bf6 {[%emt 0:00:44]} 36. Rd1 {[%emt 0:00:34]} Re8 {[%emt 0:00:43]} 37. Nb2 {[%emt 0:00:36]} Rb7 {[%emt 0:00:31]} 38. Rd6 {[%emt 0:00:29]} Be5 {[%emt 0:00:29]} 39. Ra6 {[%emt 0:00:09]} Kh7 {[%emt 0:00:28]} 40. Nd3 {[%emt 0:00:00]} Bd4 {[%emt 0:00:00]} 41. Rg2 {[%emt 0:05:39]} Rg8 {[%emt 0:03:46]} 42. Bc1 {[%emt 0:02:50]} Rxg7 {[%emt 0:04:36]} 43. Rxg7+ {[%emt 0:03:20]} Kxg7 {[%emt 0:01:14]} 44. Rxa5 {[%emt 0:03:22]} Bc3 {[%emt 0:05:13]} 45. Ra6 {[%emt 0:03:21]} Rb5 {[%emt 0:03:18]} 1/2-1/2